bitfinex/quotes_SOLUSD_20241126
["timestamp","ask_amount","ask_price","bid_price","bid_amount"]
[1732636821017,10.398,228.06,227.98,15.24630996]
[1732636821208,15.24630996,228.05,227.98,15.24630996]
[1732636821405,15.24630996,228.05,227.96,15.24630996]
[1732636821814,15.24630996,227.97,227.89,4.388]
[1732636822016,15.24630996,227.97,227.89,19.63430996]
[1732636822312,15.24630996,227.97,227.89,15.24630996]
[1732636822504,15.24630996,228.03,227.85,30.97250996]
[1732636822505,15.24630996,227.93,227.85,30.97250996]
[1732636823012,15.24630996,227.91,227.85,15.7262]
[1732636823204,15.24630996,227.89,227.81,15.24630996]
[1732636823412,15.24630996,227.85,227.72,15.7262]
[1732636823609,15.24630996,227.81,227.73,15.24630996]
[1732636823998,15.24630996,227.77,227.69,15.24630996]
[1732636824208,15.24630996,227.73,227.65,15.24630996]
[1732636824413,24.45865381,227.73,227.67,24.45865381]
[1732636824595,24.45865381,227.77,227.69,24.45865381]
[1732636824797,24.45865381,227.78,227.71,24.45865381]
[1732636825104,24.45865381,227.81,227.74,24.45865381]
[1732636825309,24.45865381,227.82,227.74,24.45865381]
[1732636825513,24.45865381,227.8,227.72,24.45865381]
[1732636825718,24.45865381,227.81,227.73,24.45865381]
[1732636826926,24.45865381,227.83,227.75,24.45865381]
[1732636827099,4.3888,227.85,227.77,24.45865381]
[1732636827299,28.84745381,227.85,227.77,24.45865381]
[1732636828432,24.45865381,227.83,227.75,24.45865381]
[1732636828727,24.45865381,227.76,227.64,4.3929]
[1732636828906,24.45865381,227.74,227.65,24.45865381]
[1732636829109,24.45865381,227.73,227.66,24.45865381]
[1732636830038,24.45865381,227.71,227.62,24.45865381]
[1732636830328,24.45865381,227.67,227.58,24.45865381]
[1732636830504,24.45865381,227.69,227.6,24.45865381]
[1732636830705,24.45865381,227.73,227.65,24.45865381]
[1732636831123,4.3905,227.76,227.69,24.45865381]
[1732636831431,34.86205381,227.78,227.7,24.45865381]
[1732636831628,24.45865381,227.76,227.68,24.45865381]
[1732636832125,34.86205381,227.78,227.7,24.45865381]
[1732636832326,30.47175381,227.78,227.7,24.45865381]
[1732636832528,24.45865381,227.74,227.66,24.45865381]
[1732636832709,24.45865381,227.77,227.69,24.45865381]
[1732636832907,24.45865381,227.75,227.67,24.45865381]
[1732636833424,28.84935381,227.75,227.67,24.45865381]
[1732636833616,24.45865381,227.73,227.64,24.45865381]
[1732636834021,24.45865381,227.74,227.67,24.45865381]
[1732636834331,6.0131,227.78,227.67,24.45865381]
[1732636834332,24.45865381,227.76,227.67,24.45865381]
[1732636835233,28.84925381,227.76,227.67,24.45865381]
[1732636835407,28.84925381,227.76,227.64,4.3927]
[1732636835408,24.45865381,227.76,227.69,24.45865381]
[1732636835614,28.84895381,227.78,227.7,24.45865381]
[1732636835912,4.3895,227.82,227.74,24.45865381]
[1732636836108,6.5683,227.83,227.77,24.45865381]
[1732636836414,4.3888,227.85,227.79,24.45865381]
[1732636836622,24.45865381,227.88,227.81,24.45865381]
[1732636837110,24.45865381,227.86,227.79,24.45865381]
[1732636837312,24.45865381,227.88,227.79,24.45865381]
[1732636837515,24.45865381,227.88,227.81,24.45865381]
[1732636837714,10.9565,227.89,227.71,15.9785]
[1732636837715,24.45865381,227.86,227.79,24.45865381]
[1732636838508,24.45865381,227.86,227.77,24.45865381]
[1732636838721,24.45865381,227.87,227.79,24.45865381]
[1732636839113,24.45865381,227.87,227.81,24.45865381]
[1732636839322,31.02695381,227.89,227.81,24.45865381]
[1732636839515,34.56854334,227.91,227.83,24.45865381]
[1732636839710,4.3872,227.94,227.88,24.45865381]
[1732636840112,24.45865381,227.97,227.88,24.45865381]
[1732636840333,28.84515381,227.97,227.88,24.45865381]
[1732636840631,24.45865381,227.95,227.86,24.45865381]
[1732636840827,24.45865381,227.95,227.88,24.45865381]
[1732636841035,24.45865381,227.95,227.86,24.45865381]
[1732636841411,4.3871,227.94,227.86,24.45865381]
[1732636841908,4.3861,227.99,227.92,24.45865381]
[1732636842110,28.84475381,227.99,227.92,24.45865381]
[1732636842315,28.84475381,227.99,227.83,9.3891]
[1732636842316,28.84475381,227.99,227.9,24.45865381]
[1732636842529,24.45865381,227.97,227.88,24.45865381]
[1732636842731,24.45865381,227.97,227.9,24.45865381]
[1732636842940,24.45865381,227.99,227.9,24.45865381]
[1732636843126,24.45865381,227.97,227.9,24.45865381]
[1732636844129,24.45865381,227.95,227.88,24.45865381]
[1732636844336,24.45865381,227.9,227.81,16.5386]
[1732636844515,24.45865381,227.87,227.78,24.45865381]
[1732636844919,24.45865381,227.9,227.81,24.45865381]
[1732636845237,24.45865381,227.88,227.81,24.45865381]
[1732636845624,24.45865381,227.88,227.79,24.45865381]
[1732636845933,4.3884,227.87,227.79,24.45865381]
[1732636846114,24.45865381,227.86,227.79,24.45865381]
[1732636846315,24.45865381,227.86,227.77,24.45865381]
[1732636846518,4.3865,227.97,227.84,24.45865381]
[1732636846838,24.45865381,227.85,227.75,10.6787]
[1732636847130,24.45865381,227.85,227.78,24.45865381]
[1732636847337,24.45865381,227.83,227.76,24.45865381]
[1732636847833,24.45865381,227.85,227.76,28.84915381]
[1732636848206,28.84725381,227.87,227.78,24.45865381]
[1732636848616,24.45865381,227.85,227.78,24.45865381]
[1732636849015,24.45865381,227.81,227.74,16.5386]
[1732636849233,24.45865381,227.79,227.71,24.45865381]
[1732636849746,6.3511,227.88,227.69,24.45865381]
[1732636849747,24.45865381,227.77,227.69,24.45865381]
[1732636849922,24.45865381,227.74,227.68,16.6407]
[1732636850117,24.45865381,227.81,227.69,4.3919]
[1732636850435,24.45865381,227.84,227.69,4.3919]
[1732636851022,24.45865381,227.84,227.69,15.3717]
[1732636851238,28.84765381,227.84,227.69,15.3717]
[1732636851627,28.84735381,227.86,227.79,24.45865381]
[1732636852131,24.45865381,227.88,227.8,24.45865381]
[1732636852437,24.45865381,227.88,227.72,5.0]
[1732636852438,28.84665381,227.9,227.83,24.45865381]
[1732636852639,24.45865381,227.9,227.83,24.45865381]
[1732636853015,28.84665381,227.9,227.83,24.45865381]
[1732636853335,24.45865381,227.89,227.8,24.45865381]
[1732636853541,24.45865381,227.87,227.79,24.45865381]
[1732636854039,24.45865381,227.88,227.8,24.45865381]
[1732636854538,15.3563,227.92,227.76,4.3905]
[1732636854539,24.45865381,227.86,227.78,24.45865381]
[1732636855336,1.82356569,227.97,227.78,24.45865381]
[1732636855523,74.72064048,228.17,227.76,4.3905]
[1732636855524,24.45865381,227.9,227.83,24.45865381]
[1732636855723,24.45865381,227.88,227.81,24.45865381]
[1732636856120,24.45865381,227.9,227.82,24.45865381]
[1732636856720,4.388,227.89,227.82,24.45865381]
[1732636857931,24.45865381,227.88,227.82,24.45865381]
[1732636858221,24.45865381,227.83,227.75,6.3394]
[1732636858422,24.45865381,227.84,227.77,24.45865381]
[1732636858650,24.45865381,227.82,227.75,6.3394]
[1732636858822,24.45865381,227.83,227.75,6.3394]
[1732636859023,6.3511,227.89,227.75,6.3394]
[1732636859242,24.45865381,227.84,227.76,24.45865381]
[1732636859954,24.45865381,227.83,227.75,30.79805381]
[1732636860138,24.45865381,227.82,227.75,30.79805381]
[1732636860330,24.45865381,227.83,227.76,24.45865381]
[1732636860527,24.45865381,227.8,227.74,16.6407]
[1732636860737,24.45865381,227.81,227.74,16.6407]
[1732636860934,24.45865381,227.8,227.72,24.45865381]
[1732636861851,24.45865381,227.84,227.77,24.45865381]
[1732636862148,24.45865381,227.86,227.79,24.45865381]
[1732636862451,4.3881,227.89,227.74,4.3909]
[1732636862626,15.3583,227.89,227.74,4.3909]
[1732636862831,4.3875,227.92,227.74,15.3683]
[1732636863746,24.45865381,227.82,227.75,24.45865381]
[1732636863943,24.45865381,227.8,227.72,24.45865381]
[1732636864749,24.45865381,227.79,227.72,24.45865381]
[1732636865054,5.0,227.89,227.72,24.45865381]
[1732636865055,24.45865381,227.8,227.72,24.45865381]
[1732636865233,28.84835381,227.81,227.73,24.45865381]
[1732636865930,24.45865381,227.79,227.72,24.45865381]
[1732636866150,24.45865381,227.84,227.77,24.45865381]
[1732636866348,24.45865381,227.85,227.78,24.45865381]
[1732636866558,24.45865381,227.84,227.77,24.45865381]
[1732636866945,24.45865381,227.79,227.7,4.3917]
[1732636867147,25.05865381,227.92,227.7,4.3917]
[1732636867148,24.45865381,227.82,227.75,24.45865381]
[1732636867337,24.45865381,227.82,227.7,4.3917]
[1732636867545,4.3893,227.83,227.7,4.3917]
[1732636868248,6.1859,227.82,227.69,16.1217]
[1732636868548,24.45865381,227.72,227.65,24.45865381]
[1732636868759,24.45865381,227.7,227.64,16.1217]
[1732636868933,25.05865381,227.81,227.64,16.1217]
[1732636868934,24.45865381,227.69,227.64,16.1217]
[1732636869129,28.85055381,227.69,227.64,16.1217]
[1732636869531,24.45865381,227.67,227.59,40.58035381]
[1732636870354,24.45865381,227.66,227.59,16.1217]
[1732636870749,24.45865381,227.65,227.58,24.45865381]
[1732636871133,24.45865381,227.62,227.55,24.45865381]
[1732636871332,24.45865381,227.59,227.54,16.1217]
[1732636871532,15.3717,227.69,227.54,16.1217]
[1732636871754,24.45865381,227.64,227.57,24.45865381]
[1732636871961,4.3919,227.69,227.54,20.5164]
[1732636872839,24.45865381,227.65,227.58,24.45865381]
[1732636873037,4.3924,227.67,227.56,4.3943]
[1732636873257,24.45865381,227.65,227.57,24.45865381]
[1732636873455,24.45865381,227.63,227.55,24.45865381]
[1732636873957,24.45865381,227.62,227.54,40.58035381]
[1732636874540,4.3924,227.67,227.51,24.45865381]
[1732636874541,24.45865381,227.58,227.51,24.45865381]
[1732636874751,24.45865381,227.54,227.46,24.45865381]
[1732636874939,24.45865381,227.53,227.45,24.45865381]
[1732636875138,24.45865381,227.53,227.45,28.85505381]
[1732636875559,24.45865381,227.54,227.46,24.45865381]
[1732636875970,24.45865381,227.54,227.47,24.45865381]
[1732636876151,24.45865381,227.57,227.5,24.45865381]
[1732636876461,24.45865381,227.56,227.49,24.45865381]
[1732636877038,24.45865381,227.52,227.41,4.3973]
[1732636877241,24.45865381,227.49,227.41,24.45865381]
[1732636877441,24.45865381,227.45,227.39,0.5178191]
[1732636877640,4.3953,227.52,227.39,0.5178191]
[1732636877866,5.0,227.51,227.39,0.5178191]
[1732636878071,24.45865381,227.44,227.39,0.5178191]
[1732636878555,24.45865381,227.45,227.39,0.5178191]
[1732636878757,24.45865381,227.46,227.39,0.5178191]
[1732636878964,24.45865381,227.51,227.44,24.45865381]
[1732636879144,6.0222,227.53,227.48,24.45865381]
[1732636879345,4.395,227.53,227.4,4.3975]
[1732636879752,4.395,227.53,227.45,24.45865381]
[1732636880051,4.395,227.53,227.46,24.45865381]
[1732636880263,24.45865381,227.53,227.45,24.45865381]
[1732636880475,24.45865381,227.49,227.39,0.5178191]
[1732636880674,24.45865381,227.44,227.39,0.5178191]
[1732636881164,24.45865381,227.45,227.39,0.5178191]
[1732636882168,24.45865381,227.44,227.39,0.5178191]
[1732636882357,24.45865381,227.41,227.39,0.5178191]
[1732636882560,24.45865381,227.4,227.39,0.5178191]
[1732636882757,6.0222,227.47,227.39,0.5178191]
[1732636882758,24.45865381,227.41,227.39,0.5178191]
[1732636882951,24.45865381,227.42,227.39,0.5178191]
[1732636883472,24.45865381,227.41,227.39,0.5178191]
[1732636883657,24.45865381,227.4,227.39,0.5178191]
[1732636883861,24.45865381,227.41,227.39,0.5178191]
[1732636884176,24.45865381,227.4,227.39,0.5178191]
[1732636884964,24.45865381,227.43,227.39,0.5178191]
[1732636885268,24.45865381,227.4,227.39,0.5178191]
[1732636886272,28.85615381,227.4,227.39,0.5178191]
[1732636887179,24.45865381,227.41,227.39,0.5178191]
[1732636887353,24.45865381,227.4,227.39,0.5178191]
[1732636887554,10.9892,227.5,227.39,0.5178191]
[1732636887772,24.45865381,227.4,227.39,0.5178191]
[1732636887983,24.45865381,227.43,227.39,0.5178191]
[1732636889058,24.45865381,227.4,227.39,0.5178191]
[1732636890673,24.54403036,227.4,227.39,0.5178191]
[1732636893364,28.94153036,227.4,227.39,0.5178191]
[1732636894962,28.94153036,227.4,227.37,12.04738591]
[1732636894963,6.0129,227.39,227.37,12.04738591]
[1732636895187,48.91730762,227.38,227.37,12.04738591]
[1732636895690,24.45865381,227.27,227.19,24.45865381]
[1732636895893,34.45865381,227.38,227.16,17.0174191]
[1732636895894,24.45865381,227.25,227.18,4.4017]
[1732636896591,24.45865381,227.27,227.19,24.45865381]
[1732636897065,24.45865381,227.27,227.19,28.86005381]
[1732636897257,24.45865381,227.27,227.16,17.0174191]
[1732636897258,24.45865381,227.25,227.17,24.45865381]
[1732636897468,24.45865381,227.25,227.19,24.45865381]
[1732636897764,24.45865381,227.3,227.23,24.45865381]
[1732636897964,24.45865381,227.32,227.24,24.45865381]
[1732636898273,24.45865381,227.3,227.22,24.45865381]
[1732636898674,24.45865381,227.28,227.22,24.45865381]
[1732636898990,24.45865381,227.28,227.2,28.85995381]
[1732636899911,28.85845381,227.28,227.2,24.45865381]
[1732636900076,24.45865381,227.21,227.16,17.0174191]
[1732636900383,24.45865381,227.23,227.16,41.47607291]
[1732636900683,24.45865381,227.23,227.16,17.0174191]
[1732636900889,24.45865381,227.25,227.17,24.45865381]
[1732636901077,24.45865381,227.25,227.18,24.45865381]
[1732636901386,1.88712883,227.32,227.16,17.0174191]
[1732636901387,24.45865381,227.24,227.16,45.87817291]
[1732636901588,24.45865381,227.24,226.93,46.73734221]
[1732636901589,48.91730762,227.17,227.04,1.84229383]
[1732636901791,5.0,227.22,226.99,24.45865381]
[1732636901992,24.45865381,227.11,227.01,24.45865381]
[1732636902175,14.56547808,227.17,227.01,24.45865381]
[1732636902498,24.45865381,227.05,226.95,4.4062]
[1732636902675,24.45865381,227.09,227.0,24.45865381]
[1732636903484,24.45865381,227.11,227.04,24.45865381]
[1732636903699,24.45865381,227.15,227.06,24.45865381]
[1732636904189,24.45865381,227.11,226.95,4.4062]
[1732636904374,24.45865381,227.1,227.03,24.45865381]
[1732636904691,24.45865381,227.12,227.04,16.4996]
[1732636904860,4.402,227.17,227.04,16.4996]
[1732636905065,24.45865381,227.17,227.09,24.45865381]
[1732636905575,24.45865381,227.19,227.12,23.776884]
[1732636906576,24.45865381,227.19,227.12,28.179784]
[1732636906890,24.45865381,227.17,227.11,23.776884]
[1732636907069,24.45865381,227.15,227.09,23.776884]
[1732636907787,24.45865381,227.13,227.07,23.776884]
[1732636908368,24.45865381,227.13,227.04,16.4996]
[1732636908564,24.45865381,227.09,227.04,16.4996]
[1732636908788,24.45865381,227.09,227.04,20.9039]
[1732636909287,24.45865381,227.09,227.04,16.4996]
[1732636909872,24.45865381,227.07,227.04,16.4996]
[1732636910070,24.45865381,227.09,227.04,16.4996]
[1732636910584,0.09506706,227.05,227.04,16.4996]
[1732636911171,0.09506706,227.05,227.04,40.276484]
[1732636911863,24.55372087,227.05,226.98,6.1467]
[1732636912291,24.55372087,227.05,227.0,24.45865381]
[1732636912292,0.09506706,227.05,227.0,24.45865381]
[1732636912676,0.09506706,227.05,227.0,28.86375381]
[1732636913023,24.55372087,227.05,226.98,10.5522]
[1732636915300,0.09506706,227.05,226.99,48.23553781]
[1732636915999,0.09506706,227.05,226.98,10.5522]
[1732636916000,0.09506706,227.05,227.02,23.776884]
[1732636916496,24.55372087,227.05,227.0,23.776884]
[1732636916876,24.55372087,227.05,226.99,23.776884]
[1732636917074,0.09506706,227.05,227.01,23.776884]
[1732636917487,0.09506706,227.05,226.99,52.64093781]
[1732636917689,24.55372087,227.05,226.99,28.182284]
[1732636917990,24.45865381,227.03,226.98,23.776884]
[1732636918192,24.45865381,227.03,226.95,24.45865381]
[1732636918374,0.09506706,227.05,226.94,4.9242191]
[1732636918375,24.45865381,227.01,226.94,4.9242191]
[1732636918775,24.45865381,227.02,226.95,24.45865381]
[1732636919179,24.45865381,226.98,226.94,0.5178191]
[1732636919386,24.45865381,227.01,226.94,4.9242191]
[1732636920107,24.45865381,227.04,226.96,24.45865381]
[1732636920278,24.45865381,227.03,226.95,24.45865381]
[1732636920603,24.45865381,227.01,226.96,23.776884]
[1732636920792,24.45865381,227.0,226.96,23.776884]
[1732636920998,24.45865381,226.98,226.94,24.2947031]
[1732636921176,24.45865381,226.99,226.94,24.2947031]
[1732636921371,24.45865381,227.04,226.96,24.45865381]
[1732636921577,0.09506706,227.05,226.95,23.776884]
[1732636921804,0.09506706,227.05,226.97,23.776884]
[1732636922178,0.09506706,227.05,226.98,0.66058246]
[1732636922400,0.09506706,227.05,227.01,23.776884]
[1732636922597,0.09506706,227.05,227.04,24.45865381]
[1732636922902,0.09506706,227.05,227.04,52.64003781]
[1732636923108,0.09386605,227.06,227.05,23.902374]
[1732636923398,2.801e-05,227.09,227.08,0.12549]
[1732636923698,6.34e-06,227.14,227.13,5.12549]
[1732636923916,6.5495,227.35,227.19,5.0]
[1732636924200,24.45865381,227.4,227.27,15.632]
[1732636924413,4.396,227.48,227.27,21.7333]
[1732636924715,26.30446064,227.5,227.28,0.12549]
[1732636924899,5.99679099,227.48,227.29,4.3996]
[1732636925103,26.30446064,227.5,227.3,23.776884]
[1732636925408,24.45865381,227.41,227.33,23.776884]
[1732636925582,24.45865381,227.39,227.3,0.12549]
[1732636925782,12.09816064,227.5,227.34,23.776884]
[1732636925986,12.09816064,227.5,227.31,5.0]
[1732636925987,12.09816064,227.5,227.32,23.902374]
[1732636926394,12.09816064,227.5,227.32,23.776884]
[1732636926600,12.09816064,227.5,227.3,23.902374]
[1732636926806,7.70256064,227.5,227.31,20.3973]
[1732636927104,39.84871301,227.48,227.4,39.84871301]
[1732636927287,39.84871301,227.47,227.39,39.84871301]
[1732636927492,39.84871301,227.47,227.31,20.3973]
[1732636927493,39.84871301,227.45,227.38,39.84871301]
[1732636927707,39.84871301,227.41,227.37,23.776884]
[1732636927912,39.84871301,227.41,227.35,23.776884]
[1732636928211,39.84871301,227.42,227.35,23.776884]
[1732636928504,39.84871301,227.43,227.35,63.62559701]
[1732636928710,39.84871301,227.43,227.37,23.776884]
[1732636929084,39.84871301,227.44,227.36,68.02369701]
[1732636929289,39.84871301,227.42,227.36,28.174984]
[1732636929489,39.84871301,227.44,227.36,68.02369701]
[1732636929815,39.84871301,227.48,227.4,39.84871301]
[1732636930225,7.70256064,227.5,227.42,39.84871301]
[1732636930389,7.70256064,227.5,227.49,39.84871301]
[1732636930710,0.08220957,227.51,227.5,23.776884]
[1732636931017,0.08220957,227.51,227.5,68.02119701]
[1732636931218,9.57e-06,227.51,227.5,68.14668701]
[1732636931513,39.84871301,227.7,227.56,0.12549]
[1732636931698,39.84871301,227.71,227.64,39.84871301]
[1732636932786,39.84871301,227.7,227.63,39.84871301]
[1732636933006,39.84871301,227.69,227.61,39.84871301]
[1732636933399,39.84871301,227.72,227.64,39.84871301]
[1732636933620,39.84871301,227.74,227.67,39.84871301]
[1732636933792,39.84871301,227.76,227.69,39.84871301]
[1732636933993,6.5495,227.83,227.7,39.84871301]
[1732636933994,39.84871301,227.77,227.7,39.84871301]
[1732636934220,17.577145,227.88,227.65,23.902374]
[1732636934399,39.84871301,227.81,227.72,39.84871301]
[1732636934711,39.84871301,227.84,227.72,63.62559701]
[1732636934905,39.84871301,227.84,227.72,68.01689701]
[1732636935218,39.84871301,227.89,227.72,73.14238701]
[1732636935421,39.84871301,227.89,227.74,5.0]
[1732636935617,39.84871301,227.91,227.83,39.84871301]
[1732636936117,39.84871301,227.85,227.77,39.84871301]
[1732636936327,39.84871301,227.82,227.74,39.84871301]
[1732636936509,4.3872,227.94,227.73,23.902374]
[1732636936702,4.3872,227.94,227.75,23.902374]
[1732636937016,0.5178191,227.96,227.79,23.902374]
[1732636937316,0.5178191,227.96,227.87,23.902374]
[1732636937522,0.5178191,227.96,227.95,39.84871301]
[1732636937831,0.5178191,227.96,227.95,63.62559701]
[1732636938040,4.3841,228.1,227.96,23.776884]
[1732636938041,39.84871301,228.1,227.96,23.776884]
[1732636938232,39.84871301,228.08,228.01,39.84871301]
[1732636938512,39.84871301,228.02,227.93,23.776884]
[1732636938816,39.84871301,228.03,227.97,39.84871301]
[1732636939021,39.84871301,228.03,227.96,23.776884]
[1732636939220,39.84871301,227.99,227.91,39.84871301]
[1732636939424,39.84871301,227.97,227.89,39.84871301]
[1732636939633,39.84871301,227.97,227.9,39.84871301]
[1732636939807,39.84871301,227.94,227.86,39.84871301]
[1732636940013,39.84871301,227.96,227.88,39.84871301]
[1732636940212,39.84871301,228.0,227.92,39.84871301]
[1732636940535,4.3842,228.09,227.91,5.0]
[1732636940736,17.556071,228.15,227.94,5.0]
[1732636940904,4.3834,228.13,227.94,5.0]
[1732636941328,4.3834,228.13,227.95,23.902374]
[1732636941624,39.84871301,228.09,228.02,39.84871301]
[1732636942010,39.84871301,228.05,227.98,39.84871301]
[1732636942621,39.84871301,228.05,227.97,39.84871301]
[1732636943036,39.84871301,228.03,227.96,39.84871301]
[1732636943233,39.84871301,228.01,227.94,63.62559701]
[1732636943729,39.84871301,228.0,227.92,39.84871301]
[1732636945515,39.84871301,228.07,228.0,39.84871301]
[1732636945713,39.84871301,228.09,228.01,39.84871301]
[1732636945925,39.84871301,228.09,228.02,39.84871301]
[1732636946109,39.84871301,228.1,228.03,39.84871301]
[1732636946310,4.3826,228.17,227.96,23.776884]
[1732636946311,4.3826,228.17,228.07,39.84871301]
[1732636946524,39.84871301,228.11,228.04,39.84871301]
[1732636946736,39.84871301,228.12,228.04,39.84871301]
[1732636947317,39.84871301,228.09,228.02,39.84871301]
[1732636947531,39.84871301,228.12,228.05,39.84871301]
[1732636948026,39.84871301,228.13,228.05,39.84871301]
[1732636948231,39.84871301,228.17,228.1,39.84871301]
[1732636948419,39.84871301,228.19,228.11,39.84871301]
[1732636948620,0.5135417,228.2,228.11,39.84871301]
[1732636948621,39.84871301,228.18,228.11,39.84871301]
[1732636948816,0.5135417,228.2,228.03,0.12549]
[1732636949431,0.5135417,228.2,228.07,28.902374]
[1732636949839,0.5135417,228.2,228.07,39.84871301]
[1732636950016,39.84871301,228.15,228.08,23.776884]
[1732636950331,0.5135417,228.2,228.13,39.84871301]
[1732636950568,39.84871301,228.17,228.1,39.84871301]
[1732636950712,39.84871301,228.17,228.04,9.3851]
[1732636950713,0.08591353,228.12,228.05,23.902374]
[1732636950915,0.08591353,228.12,228.11,63.62559701]
[1732636951132,0.08591353,228.12,228.11,23.776884]
[1732636951319,0.08591353,228.12,228.03,0.12549]
[1732636951510,0.08591353,228.12,227.95,10.967]
[1732636951722,0.08591353,228.12,227.99,10.7677]
[1732636952037,4.46961353,228.12,227.99,6.3817]
[1732636952238,39.84871301,228.01,227.93,39.84871301]
[1732636953040,39.84871301,228.05,227.98,39.84871301]
[1732636953229,39.93462654,228.12,228.04,39.84871301]
[1732636953543,0.08591353,228.12,228.07,39.84871301]
[1732636953717,0.08591353,228.12,228.08,23.776884]
[1732636954636,0.08591353,228.12,228.09,39.84871301]
[1732636954834,0.08591353,228.12,228.08,23.776884]
[1732636955350,0.08591353,228.12,228.07,39.84871301]
[1732636955530,39.84871301,228.09,228.01,39.84871301]
[1732636955857,39.84871301,228.03,227.91,39.84871301]
[1732636956153,39.84871301,227.97,227.89,39.84871301]
[1732636956350,39.84871301,227.95,227.87,39.84871301]
[1732636956527,5.6,228.09,227.9,39.84871301]
[1732636956733,39.84871301,227.95,227.86,39.84871301]
[1732636956943,39.84871301,227.97,227.88,39.84871301]
[1732636957552,39.84871301,227.93,227.84,39.84871301]
[1732636957740,20.3494,228.02,227.8,16.1986]
[1732636957741,5.0,228.0,227.8,16.1986]
[1732636957928,39.84871301,227.9,227.82,39.84871301]
[1732636958553,39.84871301,227.92,227.84,39.84871301]
[1732636958747,39.84871301,227.9,227.82,39.84871301]
[1732636959344,39.84871301,227.88,227.8,56.04731301]
[1732636959928,4.3879,227.9,227.76,39.84871301]
[1732636959929,39.84871301,227.86,227.76,39.84871301]
[1732636960227,39.84871301,227.84,227.76,39.84871301]
[1732636960425,39.84871301,227.82,227.72,39.84871301]
[1732636960831,39.84871301,227.86,227.78,39.84871301]
[1732636961160,39.84871301,227.9,227.82,39.84871301]
[1732636962350,39.84871301,227.96,227.88,39.84871301]
[1732636962728,44.23501301,227.98,227.9,39.84871301]
[1732636962933,39.84871301,227.98,227.92,39.84871301]
[1732636963252,39.84871301,228.04,227.96,39.84871301]
[1732636963444,39.84871301,228.04,227.97,23.776884]
[1732636963652,0.08690192,228.13,227.97,23.776884]
[1732636963653,39.84871301,228.06,228.0,39.84871301]
[1732636963956,39.84871301,228.06,227.92,39.84871301]
[1732636963957,0.08690192,228.13,228.05,23.776884]
[1732636964157,0.08690192,228.13,228.08,39.84871301]
[1732636964332,0.08690192,228.13,228.1,39.84871301]
[1732636964533,0.08690192,228.13,228.06,39.84871301]
[1732636965041,0.08690192,228.13,228.07,23.776884]
[1732636965592,0.08690192,228.13,228.09,63.62559701]
[1732636965741,0.08690192,228.13,228.11,63.62559701]
[1732636966059,0.08690192,228.13,228.05,39.84871301]
[1732636966359,0.08690192,228.13,228.1,23.776884]
[1732636966533,0.08690192,228.13,228.09,39.84871301]
[1732636966534,0.08690192,228.13,228.07,39.84871301]
[1732636966733,0.08690192,228.13,228.08,23.776884]
[1732636966932,0.08690192,228.13,228.05,39.84871301]
[1732636967233,39.84871301,228.1,228.02,23.776884]
[1732636968149,0.08591353,228.12,228.06,39.84871301]
[1732636968342,0.08591353,228.12,228.09,39.84871301]
[1732636968549,0.08591353,228.12,228.11,39.84871301]
[1732636968751,0.08591353,228.12,228.11,63.62559701]
[1732636969553,0.08591353,228.12,228.04,39.84871301]
[1732636969756,0.08591353,228.12,228.08,23.776884]
[1732636969940,0.08591353,228.12,228.05,63.62559701]
[1732636970144,39.93462654,228.12,228.03,63.62559701]
[1732636970336,39.84871301,228.1,228.02,23.776884]
[1732636970542,39.84871301,228.08,228.01,39.84871301]
[1732636970760,0.07924192,228.04,227.99,39.84871301]
[1732636971560,0.07924192,228.04,228.03,39.84871301]
[1732636971937,0.07924192,228.04,228.03,63.62559701]
[1732636972337,0.07924192,228.04,228.03,103.59980002]
[1732636972544,0.08970388,228.08,228.07,0.25098]
[1732636972758,0.5135417,228.2,228.07,0.25098]
[1732636972759,0.5135417,228.2,228.1,10.12549]
[1732636973096,0.5135417,228.2,228.1,119.73379002]
[1732636974063,0.5135417,228.2,228.12,45.344564]
[1732636974362,0.5135417,228.2,228.15,29.027864]
[1732636974535,0.5135417,228.2,228.19,63.75108701]
[1732636974947,0.5135417,228.2,228.19,63.87657701]
[1732636975339,39.84871301,228.37,228.2,23.902374]
[1732636975664,39.84871301,228.37,228.28,39.84871301]
[1732636975871,39.84871301,228.35,228.26,39.84871301]
[1732636976047,39.84871301,228.33,228.27,23.776884]
[1732636977063,39.84871301,228.33,228.26,39.84871301]
[1732636977761,4.3789,228.37,228.26,39.84871301]
[1732636977762,39.84871301,228.37,228.3,39.84871301]
[1732636977945,39.84871301,228.39,228.31,63.62559701]
[1732636978358,39.84871301,228.38,228.31,63.62559701]
[1732636978562,39.84871301,228.35,228.29,39.84871301]
[1732636978867,39.84871301,228.36,228.28,39.84871301]
[1732636979046,39.84871301,228.34,228.26,39.84871301]
[1732636979244,39.84871301,228.35,228.28,39.84871301]
[1732636980459,39.84871301,228.38,228.31,39.84871301]
[1732636980661,39.84871301,228.34,228.28,23.776884]